[Event "MČR v bleskovém šachu družstev 2019"]
[Site "Teplice, Czech Republic"]
[Date "2019.09.14"]
[Round "8.18"]
[White "Ruzicka, Ales"]
[Black "Sott, Pavel"]
[Result "0-1"]
[TimeControl "3 mim. + 2 s"]
[WhiteFideId "325252"]
[BlackFideId "311910"]
[WhiteElo "2102"]
[BlackElo "2167"]

1. e4 {[%clk 00:03:02]} {[%emt 00:00:02]} c5 {[%clk 00:03:03]} {[%emt
00:00:02]} 2. Nf3 {[%clk 00:03:02]} {[%emt 00:00:01]} Nc6 {[%clk 00:03:03]}
{[%emt 00:00:02]} 3. Bb5 {[%clk 00:03:03]} {[%emt 00:00:02]} g6 {[%clk
00:03:04]} {[%emt 00:00:01]} 4. O-O {[%clk 00:03:02]} {[%emt 00:00:03]} Bg7
{[%clk 00:03:05]} 5. Re1 {[%clk 00:03:03]} {[%emt 00:00:02]} Nf6 {[%clk
00:03:05]} {[%emt 00:00:02]} 6. c3 {[%clk 00:03:03]} O-O {[%clk 00:03:05]}
{[%emt 00:00:02]} 7. d4 {[%clk 00:03:03]} {[%emt 00:00:03]} cxd4 {[%clk
00:03:04]} {[%emt 00:00:02]} 8. cxd4 {[%clk 00:03:03]} {[%emt 00:00:02]} d5
{[%clk 00:03:04]} {[%emt 00:00:02]} 9. e5 {[%clk 00:02:56]} {[%emt 00:00:09]}
Ne4 {[%clk 00:03:04]} {[%emt 00:00:02]} 10. Nc3 {[%clk 00:02:45]} {[%emt
00:00:13]} Nxc3 {[%clk 00:03:04]} {[%emt 00:00:02]} 11. bxc3 {[%clk 00:02:46]}
{[%emt 00:00:01]} Bg4 {[%clk 00:03:05]} {[%emt 00:00:02]} 12. h3 {[%clk
00:02:39]} {[%emt 00:00:08]} Bxf3 {[%clk 00:03:05]} {[%emt 00:00:02]} 13. Qxf3
{[%clk 00:02:39]} {[%emt 00:00:02]} Rc8 {[%clk 00:03:04]} {[%emt 00:00:03]} 14.
a4 {[%clk 00:02:13]} {[%emt 00:00:28]} a6 {[%clk 00:03:02]} {[%emt 00:00:04]}
15. Bxc6 {[%clk 00:02:06]} {[%emt 00:00:09]} Rxc6 {[%clk 00:03:00]} {[%emt
00:00:05]} 16. Rb1 {[%clk 00:02:05]} {[%emt 00:00:02]} Qd7 {[%clk 00:02:57]}
{[%emt 00:00:05]} 17. Ba3 {[%clk 00:02:01]} {[%emt 00:00:07]} Rfc8 {[%clk
00:02:52]} {[%emt 00:00:06]} 18. Bb4 {[%clk 00:02:00]} {[%emt 00:00:03]} e6
{[%clk 00:02:45]} {[%emt 00:00:09]} 19. h4 {[%clk 00:01:49]} {[%emt 00:00:13]}
Bf8 {[%clk 00:02:45]} {[%emt 00:00:02]} 20. Bxf8 {[%clk 00:01:42]} {[%emt
00:00:09]} Kxf8 {[%clk 00:02:46]} {[%emt 00:00:01]} 21. Rb3 {[%clk 00:01:39]}
{[%emt 00:00:05]} Rc4 {[%clk 00:02:37]} {[%emt 00:00:11]} 22. Reb1 {[%clk
00:01:35]} {[%emt 00:00:05]} R8c7 {[%clk 00:02:27]} {[%emt 00:00:12]} 23. Qf6
{[%clk 00:01:17]} {[%emt 00:00:21]} Kg8 {[%clk 00:02:26]} {[%emt 00:00:03]} 24.
h5 {[%clk 00:01:17]} {[%emt 00:00:02]} Qe7 {[%clk 00:02:09]} {[%emt 00:00:19]}
25. Rxb7 {[%clk 00:00:55]} {[%emt 00:00:23]} Qxf6 {[%clk 00:01:35]} {[%emt
00:00:36]} 26. exf6 {[%clk 00:00:55]} {[%emt 00:00:03]} h6 {[%clk 00:01:18]}
{[%emt 00:00:19]} 27. hxg6 {[%clk 00:00:45]} {[%emt 00:00:12]} fxg6 {[%clk
00:01:19]} {[%emt 00:00:01]} 28. Rxc7 {[%clk 00:00:38]} {[%emt 00:00:10]} Rxc7
{[%clk 00:01:19]} {[%emt 00:00:02]} 29. Rb6 {[%clk 00:00:37]} {[%emt 00:00:02]}
Kf7 {[%clk 00:01:17]} {[%emt 00:00:04]} 30. Rxa6 {[%clk 00:00:34]} {[%emt
00:00:05]} Kxf6 {[%clk 00:01:17]} {[%emt 00:00:03]} 31. a5 {[%clk 00:00:33]}
{[%emt 00:00:03]} Rxc3 {[%clk 00:01:18]} {[%emt 00:00:01]} 32. g3 {[%clk
00:00:33]} {[%emt 00:00:03]} Rd3 {[%clk 00:01:18]} {[%emt 00:00:01]} 33. Rb6
{[%clk 00:00:28]} {[%emt 00:00:06]} Rxd4 {[%clk 00:01:19]} {[%emt 00:00:01]} 34.
a6 {[%clk 00:00:29]} Ra4 {[%clk 00:01:20]} 35. Kg2 {[%clk 00:00:30]} {[%emt
00:00:01]} h5 {[%clk 00:01:20]} {[%emt 00:00:02]} 36. Kf3 {[%clk 00:00:32]} g5
{[%clk 00:01:21]} {[%emt 00:00:02]} 37. Ke2 {[%clk 00:00:33]} {[%emt 00:00:01]}
h4 {[%clk 00:01:21]} {[%emt 00:00:02]} 38. gxh4 {[%clk 00:00:33]} {[%emt
00:00:01]} gxh4 {[%clk 00:01:22]} 39. Kf3 {[%clk 00:00:34]} Kf5 {[%clk
00:01:22]} {[%emt 00:00:02]} 40. Kg2 {[%clk 00:00:33]} {[%emt 00:00:03]} Ra3
{[%clk 00:01:22]} {[%emt 00:00:02]} 41. Rb4 {[%clk 00:00:32]} {[%emt 00:00:03]}
Rxa6 {[%clk 00:01:18]} {[%emt 00:00:06]} 42. Rxh4 {[%clk 00:00:33]} {[%emt
00:00:01]} e5 {[%clk 00:01:17]} {[%emt 00:00:03]} 43. Rh5+ {[%clk 00:00:34]}
{[%emt 00:00:02]} Ke4 {[%clk 00:01:17]} {[%emt 00:00:02]} 44. Rg5 {[%clk
00:00:33]} {[%emt 00:00:03]} Kd4 {[%clk 00:01:15]} {[%emt 00:00:03]} 45. f3
{[%clk 00:00:34]} {[%emt 00:00:01]} Ra2+ {[%clk 00:01:14]} {[%emt 00:00:03]} 46.
Kg3 {[%clk 00:00:35]} {[%emt 00:00:02]} e4 {[%clk 00:01:15]} 47. fxe4 {[%clk
00:00:33]} {[%emt 00:00:04]} Kxe4 {[%clk 00:01:13]} {[%emt 00:00:04]} 48. Rg8
{[%clk 00:00:33]} {[%emt 00:00:03]} d4 {[%clk 00:01:14]} {[%emt 00:00:01]} 49.
Re8+ {[%clk 00:00:33]} Kd3 {[%clk 00:01:15]} {[%emt 00:00:01]} 50. Kf3 {[%clk
00:00:35]} Ra7 {[%clk 00:01:14]} {[%emt 00:00:02]} 51. Kf2 {[%clk 00:00:34]}
{[%emt 00:00:03]} Kd2 {[%clk 00:01:15]} 52. Rf8 {[%clk 00:00:29]} {[%emt
00:00:08]} d3 {[%clk 00:01:15]} {[%emt 00:00:03]} 53. Rf6 {[%clk 00:00:29]}
{[%emt 00:00:02]} Re7 {[%clk 00:01:12]} {[%emt 00:00:04]} 54. Rf8 {[%clk
00:00:27]} {[%emt 00:00:04]} Kd1 {[%clk 00:01:13]} {[%emt 00:00:01]} 55. Rf6
{[%clk 00:00:27]} {[%emt 00:00:02]} Re2+ {[%clk 00:01:10]} {[%emt 00:00:05]} 56.
Kf1 {[%clk 00:00:28]} {[%emt 00:00:02]} Re8 {[%clk 00:01:07]} {[%emt 00:00:04]}
57. Kf2 {[%clk 00:00:29]} {[%emt 00:00:01]} Re4 {[%clk 00:01:07]} {[%emt
00:00:02]} 58. Rf8 {[%clk 00:00:29]} {[%emt 00:00:02]} d2 {[%clk 00:01:08]}
{[%emt 00:00:02]} 59. Rc8 {[%clk 00:00:27]} {[%emt 00:00:03]} Re7 {[%clk
00:01:09]} {[%emt 00:00:02]} 60. Rf8 {[%clk 00:00:18]} {[%emt 00:00:11]} Re5
{[%clk 00:01:10]} 61. Rf7 {[%clk 00:00:18]} {[%emt 00:00:02]} Re4 {[%clk
00:01:10]} {[%emt 00:00:02]} 62. Rf8 {[%clk 00:00:19]} {[%emt 00:00:02]} Kc2
{[%clk 00:01:11]} 63. Rc8+ {[%clk 00:00:19]} {[%emt 00:00:03]} Kd3 {[%clk
00:01:12]} {[%emt 00:00:01]} 64. Rd8+ {[%clk 00:00:17]} {[%emt 00:00:04]} Kc2
{[%clk 00:01:08]} {[%emt 00:00:06]} 65. Rc8+ {[%clk 00:00:17]} Kd1 {[%clk
00:01:09]} {[%emt 00:00:01]} 66. Kf3 {[%clk 00:00:16]} {[%emt 00:00:04]} Re7
{[%clk 00:01:07]} {[%emt 00:00:03]} 67. Kf2 {[%clk 00:00:16]} {[%emt 00:00:03]}
Rf7+ {[%clk 00:01:07]} {[%emt 00:00:01]} 68. Ke3 {[%clk 00:00:15]} {[%emt
00:00:03]} Ke1 {[%clk 00:01:07]} {[%emt 00:00:02]} 69. Rh8 {[%clk 00:00:13]}
{[%emt 00:00:04]} d1=Q {[%clk 00:01:06]} {[%emt 00:00:03]} 70. Rh1+ {[%clk
00:00:13]} {[%emt 00:00:02]} Rf1 {[%clk 00:01:08]} 0-1

[Event "MČR v bleskovém šachu družstev 2019"]
[Site "Teplice, Czech Republic"]
[Date "2019.09.14"]
[Round "8.19"]
[White "Kupka, Frantisek"]
[Black "Loskot, Petr"]
[Result "0-1"]
[TimeControl "3 mim. + 2 s"]
[WhiteFideId "309540"]
[BlackFideId "319570"]
[WhiteElo "2034"]
[BlackElo "2010"]

1. e4 {[%clk 00:03:02]} {[%emt 00:00:02]} e6 {[%clk 00:03:03]} {[%emt
00:00:02]} 2. d3 {[%clk 00:02:59]} {[%emt 00:00:04]} d5 {[%clk 00:03:02]}
{[%emt 00:00:03]} 3. Nd2 {[%clk 00:03:00]} {[%emt 00:00:02]} Nf6 {[%clk
00:02:59]} {[%emt 00:00:04]} 4. g3 {[%clk 00:03:00]} {[%emt 00:00:03]} Be7
{[%clk 00:02:57]} {[%emt 00:00:03]} 5. Bg2 {[%clk 00:03:00]} {[%emt 00:00:02]}
dxe4 {[%clk 00:02:54]} {[%emt 00:00:05]} 6. dxe4 {[%clk 00:02:58]} {[%emt
00:00:05]} e5 {[%clk 00:02:54]} {[%emt 00:00:01]} 7. Ngf3 {[%clk 00:02:54]}
{[%emt 00:00:06]} Nc6 {[%clk 00:02:54]} {[%emt 00:00:03]} 8. O-O {[%clk
00:02:53]} {[%emt 00:00:02]} O-O {[%clk 00:02:55]} {[%emt 00:00:02]} 9. c3
{[%clk 00:02:49]} {[%emt 00:00:05]} Bg4 {[%clk 00:02:53]} {[%emt 00:00:04]} 10.
Qb3 {[%clk 00:02:40]} {[%emt 00:00:12]} Rb8 {[%clk 00:02:21]} {[%emt 00:00:33]}
11. Re1 {[%clk 00:02:32]} {[%emt 00:00:10]} Be6 {[%clk 00:02:22]} {[%emt
00:00:02]} 12. Qb5 {[%clk 00:02:09]} {[%emt 00:00:24]} a6 {[%clk 00:02:21]}
{[%emt 00:00:04]} 13. Qe2 {[%clk 00:02:07]} {[%emt 00:00:03]} b5 {[%clk
00:01:48]} {[%emt 00:00:36]} 14. Ng5 {[%clk 00:02:05]} {[%emt 00:00:03]} Bg4
{[%clk 00:01:42]} {[%emt 00:00:08]} 15. Qe3 {[%clk 00:01:47]} {[%emt 00:00:21]}
h6 {[%clk 00:01:40]} {[%emt 00:00:04]} 16. Ngf3 {[%clk 00:01:41]} {[%emt
00:00:08]} Qc8 {[%clk 00:01:33]} {[%emt 00:00:09]} 17. Nh4 {[%clk 00:01:34]}
{[%emt 00:00:08]} Be6 {[%clk 00:01:09]} {[%emt 00:00:27]} 18. Nb3 {[%clk
00:01:15]} {[%emt 00:00:21]} Ng4 {[%clk 00:01:02]} {[%emt 00:00:08]} 19. Qe2
{[%clk 00:01:09]} {[%emt 00:00:09]} Bxh4 {[%clk 00:01:02]} {[%emt 00:00:01]} 20.
gxh4 {[%clk 00:01:09]} {[%emt 00:00:03]} Qd8 {[%clk 00:01:03]} {[%emt
00:00:01]} 21. Qf3 {[%clk 00:00:54]} {[%emt 00:00:17]} Qxh4 {[%clk 00:01:02]}
{[%emt 00:00:03]} 22. h3 {[%clk 00:00:36]} {[%emt 00:00:20]} Nf6 {[%clk
00:00:49]} {[%emt 00:00:15]} 23. Nc5 {[%clk 00:00:36]} {[%emt 00:00:01]} Bc8
{[%clk 00:00:41]} {[%emt 00:00:11]} 24. Be3 {[%clk 00:00:32]} {[%emt 00:00:06]}
Nd7 {[%clk 00:00:38]} {[%emt 00:00:05]} 25. Nxd7 {[%clk 00:00:16]} {[%emt
00:00:17]} Bxd7 {[%clk 00:00:40]} {[%emt 00:00:01]} 26. Rad1 {[%clk 00:00:15]}
{[%emt 00:00:03]} Be6 {[%clk 00:00:41]} 27. Bc5 {[%clk 00:00:15]} {[%emt
00:00:02]} Rfd8 {[%clk 00:00:42]} 28. b3 {[%clk 00:00:12]} {[%emt 00:00:05]}
Rxd1 {[%clk 00:00:38]} {[%emt 00:00:07]} 29. Rxd1 {[%emt 00:00:01]} Rd8 30.
Rxd8+ {[%clk 00:00:08]} {[%emt 00:00:06]} Qxd8 {[%clk 00:00:40]} {[%emt
00:00:01]} 31. Qe2 {[%clk 00:00:06]} {[%emt 00:00:04]} Qh4 {[%clk 00:00:38]}
{[%emt 00:00:04]} 32. Qf3 {[%clk 00:00:07]} {[%emt 00:00:02]} g5 {[%clk
00:00:37]} {[%emt 00:00:03]} 33. Be3 {[%clk 00:00:07]} {[%emt 00:00:03]} g4
{[%clk 00:00:31]} {[%emt 00:00:07]} 34. hxg4 {[%clk 00:00:06]} {[%emt
00:00:03]} Bxg4 {[%clk 00:00:32]} 35. Qg3 {[%clk 00:00:07]} {[%emt 00:00:02]}
Qxg3 36. fxg3 {[%clk 00:00:07]} h5 {[%clk 00:00:34]} 37. Bg5 {[%clk 00:00:06]}
{[%emt 00:00:03]} Kg7 {[%clk 00:00:34]} {[%emt 00:00:03]} 38. Be3 {[%clk
00:00:07]} Kg6 {[%clk 00:00:35]} 39. Kf1 {[%clk 00:00:08]} Nd8 {[%clk
00:00:32]} {[%emt 00:00:05]} 40. Ke1 {[%clk 00:00:08]} {[%emt 00:00:01]} Ne6
{[%clk 00:00:33]} 41. Kd2 {[%clk 00:00:08]} {[%emt 00:00:03]} Kf6 {[%clk
00:00:32]} {[%emt 00:00:03]} 42. Bf2 {[%clk 00:00:07]} {[%emt 00:00:03]} Ke7
{[%clk 00:00:32]} {[%emt 00:00:01]} 43. Bf1 {[%clk 00:00:07]} {[%emt 00:00:03]}
Kd6 {[%clk 00:00:32]} 44. Kc2 {[%clk 00:00:06]} {[%emt 00:00:03]} c5 {[%clk
00:00:34]} 45. Kd2 {[%clk 00:00:07]} Ng5 {[%clk 00:00:35]} 46. Ke3 {[%clk
00:00:08]} {[%emt 00:00:01]} Bf3 {[%clk 00:00:34]} {[%emt 00:00:03]} 47. Bd3
{[%clk 00:00:09]} {[%emt 00:00:01]} Bg4 {[%clk 00:00:31]} {[%emt 00:00:04]} 48.
Kd2 {[%clk 00:00:09]} {[%emt 00:00:02]} Ne6 {[%clk 00:00:30]} {[%emt 00:00:03]}
49. Be3 {[%clk 00:00:10]} {[%emt 00:00:02]} Kc6 {[%clk 00:00:29]} {[%emt
00:00:03]} 50. Bf1 {[%clk 00:00:11]} a5 {[%clk 00:00:29]} {[%emt 00:00:02]} 51.
a4 {[%clk 00:00:11]} {[%emt 00:00:02]} bxa4 {[%clk 00:00:29]} {[%emt 00:00:02]}
52. bxa4 {[%clk 00:00:12]} Nc7 {[%clk 00:00:23]} {[%emt 00:00:07]} 53. Bc4
{[%clk 00:00:13]} {[%emt 00:00:02]} Be6 {[%clk 00:00:22]} {[%emt 00:00:02]} 54.
Bf1 {[%clk 00:00:11]} {[%emt 00:00:04]} Bb3 {[%clk 00:00:23]} {[%emt 00:00:02]}
55. Be2 {[%clk 00:00:11]} {[%emt 00:00:02]} Bxa4 {[%clk 00:00:22]} {[%emt
00:00:02]} 56. Bxh5 {[%clk 00:00:12]} Bb3 {[%clk 00:00:23]} 57. Be2 {[%clk
00:00:09]} {[%emt 00:00:05]} a4 {[%clk 00:00:25]} 58. Kc1 {[%clk 00:00:09]}
{[%emt 00:00:02]} a3 {[%clk 00:00:26]} {[%emt 00:00:01]} 59. Kb1 {[%clk
00:00:09]} {[%emt 00:00:01]} Nb5 {[%clk 00:00:25]} {[%emt 00:00:03]} 60. g4
{[%clk 00:00:08]} {[%emt 00:00:03]} Nxc3+ {[%clk 00:00:26]} {[%emt 00:00:02]}
61. Bb5+ {[%emt 00:00:10]} 0-1

[Event "MČR v bleskovém šachu družstev 2019"]
[Site "Teplice, Czech Republic"]
[Date "2019.09.14"]
[Round "8.21"]
[White "Mach, Petr"]
[Black "Rubes, Jan"]
[Result "0-1"]
[TimeControl "3 mim. + 2 s"]
[BlackTitle "FM"]
[BlackFideId "338176"]
[WhiteElo "1961"]
[BlackElo "2316"]

1. Nf3 {[%clk 00:03:02]} {[%emt 00:00:02]} Nf6 {[%emt 00:00:02]} 2. c4 g6
{[%clk 00:02:57]} {[%emt 00:00:07]} 3. Nc3 {[%clk 00:03:03]} {[%emt 00:00:03]}
Bg7 {[%clk 00:02:58]} 4. d4 {[%clk 00:03:02]} {[%emt 00:00:03]} d6 {[%clk
00:02:58]} {[%emt 00:00:01]} 5. g3 {[%clk 00:03:03]} {[%emt 00:00:02]} O-O
{[%clk 00:02:58]} {[%emt 00:00:03]} 6. Bg2 {[%clk 00:03:04]} Nc6 {[%clk
00:02:56]} {[%emt 00:00:04]} 7. O-O {[%clk 00:02:55]} {[%emt 00:00:10]} a6
{[%clk 00:02:57]} {[%emt 00:00:01]} 8. h3 {[%clk 00:02:42]} {[%emt 00:00:15]}
Rb8 {[%clk 00:02:56]} {[%emt 00:00:03]} 9. a4 {[%clk 00:02:43]} {[%emt
00:00:01]} a5 {[%clk 00:02:56]} {[%emt 00:00:03]} 10. e4 {[%emt 00:00:18]} Nb4
{[%clk 00:02:43]} {[%emt 00:00:05]} 11. Be3 {[%clk 00:02:13]} {[%emt 00:00:35]}
Nd7 12. Nd5 {[%emt 00:00:37]} Nxd5 {[%clk 00:01:51]} {[%emt 00:00:12]} 0-1

[Event "MČR v bleskovém šachu družstev 2019"]
[Site "Teplice, Czech Republic"]
[Date "2019.09.14"]
[Round "8.22"]
[White "Hadraba, Vladimir"]
[Black "Kovar, Vojtech"]
[Result "0-1"]
[TimeControl "3 mim. + 2 s"]
[WhiteFideId "301663"]
[WhiteElo "2095"]
[BlackElo "2247"]

1. e4 {[%clk 00:03:03]} e5 {[%clk 00:03:03]} {[%emt 00:00:02]} 2. Nf3 {[%clk
00:03:04]} {[%emt 00:00:01]} Nc6 {[%clk 00:03:03]} 3. Bb5 {[%clk 00:03:05]}
{[%emt 00:00:01]} a6 {[%clk 00:03:04]} 4. Ba4 {[%clk 00:03:06]} Nf6 {[%clk
00:03:05]} {[%emt 00:00:03]} 5. O-O {[%clk 00:03:07]} {[%emt 00:00:02]} Be7
{[%clk 00:03:06]} 6. Re1 {[%clk 00:03:08]} {[%emt 00:00:02]} b5 {[%clk
00:03:07]} 7. Bb3 {[%clk 00:03:09]} {[%emt 00:00:01]} d6 {[%clk 00:03:08]} 8.
c3 {[%clk 00:03:09]} {[%emt 00:00:02]} O-O {[%clk 00:03:04]} {[%emt 00:00:06]}
9. h3 {[%clk 00:03:10]} {[%emt 00:00:01]} Nb8 {[%clk 00:03:03]} {[%emt
00:00:03]} 10. d4 {[%clk 00:03:08]} {[%emt 00:00:04]} Nbd7 {[%clk 00:03:04]} 11.
Nbd2 {[%clk 00:03:07]} {[%emt 00:00:03]} Bb7 {[%clk 00:03:05]} 12. Bc2 {[%clk
00:03:00]} {[%emt 00:00:10]} Re8 {[%clk 00:03:06]} {[%emt 00:00:01]} 13. Nf1
{[%clk 00:03:00]} {[%emt 00:00:02]} Bf8 {[%clk 00:03:07]} 14. Ng3 {[%clk
00:03:01]} {[%emt 00:00:02]} g6 {[%clk 00:03:08]} 15. Bg5 {[%clk 00:02:52]}
{[%emt 00:00:12]} h6 {[%clk 00:03:09]} {[%emt 00:00:02]} 16. Bd2 {[%clk
00:02:52]} {[%emt 00:00:02]} Bg7 {[%clk 00:02:23]} {[%emt 00:00:48]} 17. a4
{[%clk 00:02:45]} {[%emt 00:00:08]} c5 {[%clk 00:02:22]} {[%emt 00:00:03]} 18.
d5 {[%clk 00:02:41]} {[%emt 00:00:06]} c4 {[%clk 00:02:23]} {[%emt 00:00:01]}
19. Nh2 {[%clk 00:02:16]} {[%emt 00:00:28]} Nc5 {[%clk 00:02:19]} {[%emt
00:00:06]} 20. Ng4 {[%clk 00:02:11]} {[%emt 00:00:06]} Nxg4 {[%clk 00:02:15]}
{[%emt 00:00:06]} 21. hxg4 {[%clk 00:02:11]} {[%emt 00:00:02]} Rb8 {[%clk
00:02:14]} {[%emt 00:00:03]} 22. axb5 {[%clk 00:02:03]} {[%emt 00:00:10]} axb5
{[%clk 00:02:16]} 23. Qf3 {[%clk 00:01:59]} {[%emt 00:00:06]} Bc8 {[%clk
00:02:11]} {[%emt 00:00:07]} 24. Ra7 {[%clk 00:01:47]} {[%emt 00:00:14]} Re7
{[%clk 00:01:52]} {[%emt 00:00:20]} 25. Rea1 {[%clk 00:01:43]} {[%emt
00:00:07]} Rxa7 {[%clk 00:01:45]} {[%emt 00:00:09]} 26. Rxa7 {[%clk 00:01:43]}
{[%emt 00:00:01]} Bd7 {[%clk 00:01:32]} {[%emt 00:00:16]} 27. Be3 {[%clk
00:01:35]} {[%emt 00:00:10]} Be8 {[%clk 00:01:28]} {[%emt 00:00:06]} 28. Nf1
{[%clk 00:01:02]} {[%emt 00:00:35]} Qb6 {[%clk 00:01:17]} {[%emt 00:00:13]} 29.
Ra1 {[%clk 00:00:55]} {[%emt 00:00:10]} Qc7 {[%clk 00:01:18]} 30. g5 {[%clk
00:00:51]} {[%emt 00:00:07]} h5 {[%clk 00:01:15]} {[%emt 00:00:05]} 31. Ng3
{[%clk 00:00:50]} {[%emt 00:00:03]} b4 {[%clk 00:01:10]} {[%emt 00:00:07]} 32.
Ne2 {[%clk 00:00:33]} {[%emt 00:00:19]} Nd3 {[%clk 00:00:59]} {[%emt 00:00:12]}
33. Bxd3 {[%clk 00:00:23]} {[%emt 00:00:12]} cxd3 {[%clk 00:01:01]} 34. Ng3
{[%clk 00:00:21]} {[%emt 00:00:05]} bxc3 {[%clk 00:01:00]} {[%emt 00:00:03]} 35.
bxc3 {[%clk 00:00:22]} Qxc3 {[%clk 00:00:58]} {[%emt 00:00:05]} 36. Ra7 {[%clk
00:00:17]} {[%emt 00:00:06]} d2 {[%clk 00:00:45]} {[%emt 00:00:15]} 37. Nf1
{[%clk 00:00:13]} {[%emt 00:00:07]} Rb1 {[%clk 00:00:37]} {[%emt 00:00:09]} 38.
Bxd2 {[%clk 00:00:09]} {[%emt 00:00:06]} Qxd2 {[%clk 00:00:35]} {[%emt
00:00:05]} 39. Ra8 {[%clk 00:00:05]} {[%emt 00:00:05]} Kf8 {[%clk 00:00:16]}
{[%emt 00:00:21]} 40. Qa3 {[%clk 00:00:06]} Qb4 {[%clk 00:00:13]} {[%emt
00:00:05]} 41. Qa6 {[%clk 00:00:03]} {[%emt 00:00:05]} Rc1 {[%clk 00:00:04]}
{[%emt 00:00:11]} 0-1

[Event "MČR v bleskovém šachu družstev 2019"]
[Site "Teplice, Czech Republic"]
[Date "2019.09.14"]
[Round "8.24"]
[White "Krutsky, Martin"]
[Black "Ocelak, Jakub"]
[Result "1-0"]
[TimeControl "3 mim. + 2 s"]
[WhiteFideId "361526"]
[WhiteElo "1974"]
[BlackElo "1705"]

1. e4 {[%clk 00:03:02]} {[%emt 00:00:01]} e6 {[%clk 00:02:58]} {[%emt
00:00:07]} 2. d4 {[%clk 00:02:58]} {[%emt 00:00:06]} d5 {[%clk 00:02:58]}
{[%emt 00:00:02]} 3. e5 {[%clk 00:02:59]} c5 {[%clk 00:02:59]} 4. c3 {[%clk
00:03:00]} {[%emt 00:00:01]} Nc6 {[%clk 00:03:00]} {[%emt 00:00:01]} 5. Nf3
{[%clk 00:03:01]} Bd7 {[%clk 00:03:00]} {[%emt 00:00:02]} 6. a3 {[%clk
00:03:00]} {[%emt 00:00:04]} f6 {[%emt 00:00:03]} 7. Bd3 {[%clk 00:02:57]}
{[%emt 00:00:04]} fxe5 {[%clk 00:02:50]} {[%emt 00:00:12]} 8. Nxe5 {[%clk
00:02:57]} {[%emt 00:00:02]} Nf6 {[%clk 00:02:44]} {[%emt 00:00:08]} 9. Nxc6
{[%clk 00:02:45]} {[%emt 00:00:14]} bxc6 {[%clk 00:02:41]} {[%emt 00:00:04]} 10.
O-O {[%clk 00:02:43]} {[%emt 00:00:04]} Bd6 {[%clk 00:02:42]} {[%emt 00:00:01]}
11. f4 {[%clk 00:02:35]} {[%emt 00:00:11]} O-O {[%clk 00:02:38]} {[%emt
00:00:06]} 12. Nd2 {[%clk 00:02:29]} {[%emt 00:00:08]} cxd4 {[%clk 00:02:34]}
{[%emt 00:00:06]} 13. cxd4 {[%clk 00:02:30]} c5 {[%clk 00:02:35]} {[%emt
00:00:01]} 14. Nf3 {[%clk 00:02:24]} {[%emt 00:00:08]} cxd4 {[%clk 00:02:23]}
{[%emt 00:00:14]} 15. Ne5 {[%clk 00:02:15]} {[%emt 00:00:11]} Bc5 {[%clk
00:01:57]} {[%emt 00:00:27]} 16. Kh1 {[%clk 00:02:09]} {[%emt 00:00:08]} Ne4
{[%clk 00:01:57]} {[%emt 00:00:02]} 17. Qe2 {[%clk 00:01:57]} {[%emt 00:00:14]}
Bd6 {[%clk 00:01:16]} {[%emt 00:00:43]} 18. Bd2 {[%clk 00:01:16]} {[%emt
00:00:44]} Rb8 {[%clk 00:00:59]} {[%emt 00:00:20]} 19. b4 {[%clk 00:01:14]}
{[%emt 00:00:04]} Nc3 {[%clk 00:00:46]} {[%emt 00:00:14]} 20. Qh5 {[%clk
00:00:48]} {[%emt 00:00:27]} Ne4 {[%clk 00:00:46]} {[%emt 00:00:02]} 21. Rae1
{[%clk 00:00:32]} {[%emt 00:00:18]} Be8 {[%clk 00:00:46]} {[%emt 00:00:03]} 22.
Qh3 {[%clk 00:00:27]} {[%emt 00:00:07]} Qe7 {[%clk 00:00:23]} {[%emt 00:00:25]}
23. Bxe4 {[%clk 00:00:18]} {[%emt 00:00:07]} dxe4 {[%clk 00:00:19]} {[%emt
00:00:10]} 24. Rxe4 {[%clk 00:00:19]} {[%emt 00:00:01]} Bxe5 {[%clk 00:00:17]}
{[%emt 00:00:04]} 25. Rxe5 {[%clk 00:00:20]} {[%emt 00:00:01]} Bd7 {[%clk
00:00:08]} {[%emt 00:00:11]} 26. Rfe1 {[%clk 00:00:20]} {[%emt 00:00:02]} Qd6
{[%clk 00:00:08]} {[%emt 00:00:02]} 27. Rh5 {[%clk 00:00:13]} {[%emt 00:00:09]}
h6 {[%clk 00:00:08]} 28. f5 {[%clk 00:00:12]} {[%emt 00:00:04]} exf5 {[%clk
00:00:07]} {[%emt 00:00:02]} 29. Bxh6 {[%clk 00:00:13]} {[%emt 00:00:02]} gxh6
{[%emt 00:00:06]} 30. Rxh6 {[%clk 00:00:13]} {[%emt 00:00:01]} Qd5 {[%clk
00:00:04]} {[%emt 00:00:02]} 31. Rg6+ {[%clk 00:00:10]} {[%emt 00:00:05]} Kf7
{[%clk 00:00:04]} {[%emt 00:00:02]} 32. Qh7# 1-0